bitfinex-derivatives/quotes_BNBF0:USTF0_20251219
["timestamp","ask_amount","ask_price","bid_price","bid_amount"]
[1766174269824,0.20308657,857.24,856.4,0.72971944]
[1766174270124,0.20308657,857.24,856.41,0.72971944]
[1766174270321,0.20308657,857.24,856.42,0.72971944]
[1766174270626,0.20308657,857.24,856.43,0.72971944]
[1766174270821,0.20308657,857.24,856.44,0.72971944]
[1766174271122,0.20308657,857.24,856.45,0.72971944]
[1766174271321,0.20308657,857.24,856.46,0.72971944]
[1766174271526,0.20308657,857.24,856.47,0.72971944]
[1766174271722,0.20308657,857.24,856.48,0.72971944]
[1766174271926,0.20308657,857.24,856.49,0.72971944]
[1766174272126,0.20308657,857.24,856.5,0.72971944]
[1766174272324,0.20308657,857.24,856.51,0.72971944]
[1766174272524,0.20308657,857.24,856.52,0.72971944]
[1766174272728,0.20308657,857.24,856.53,0.72971944]
[1766174272926,0.20308657,857.24,856.54,0.72971944]
[1766174273125,0.20308657,857.24,856.55,0.72971944]
[1766174273326,0.20308657,857.24,856.56,0.72971944]
[1766174273525,0.20308657,857.24,856.57,0.72971944]
[1766174273730,0.20308657,857.24,856.58,0.72971944]
[1766174273929,1.72973604,857.95,856.59,1.58873738]
[1766174274130,0.20299594,857.48,856.6,0.72971944]
[1766174274425,1.72973604,857.97,856.61,0.72971944]
[1766174274626,0.20299002,857.43,856.62,0.72971944]
[1766174274928,1.72973604,857.97,856.63,0.72971944]
[1766174275231,1.72973604,857.97,856.64,0.72971944]
[1766174275524,1.72973604,857.99,856.65,0.72971944]
[1766174275726,1.72973604,857.99,856.66,0.72971944]
[1766174275927,1.72973604,857.99,856.55,0.85901794]
[1766174275928,1.72973604,857.99,856.67,0.72971944]
[1766174276126,0.2029841,857.66,856.68,0.72971944]
[1766174276330,0.2029841,857.66,856.69,0.72971944]
[1766174276531,0.2029841,857.66,856.7,0.72971944]
[1766174276731,0.2029841,857.66,856.71,0.72971944]
[1766174276932,0.2029841,857.66,856.72,0.72971944]
[1766174277228,0.2029841,857.66,856.73,0.72971944]
[1766174277535,0.2029841,857.66,856.74,0.72971944]
[1766174277828,0.2029841,857.66,856.53,0.85901794]
[1766174277829,0.2029841,857.66,856.75,0.72971944]
[1766174278029,0.2029841,857.66,856.76,0.72971944]
[1766174278233,0.2029841,857.66,856.77,0.72971944]
[1766174278432,0.2029841,857.66,856.78,0.72971944]
[1766174278732,0.2029841,857.66,856.79,0.72971944]
[1766174278929,0.2029841,857.66,856.51,0.85901794]
[1766174279134,0.2029841,857.66,856.52,0.72974077]
[1766174279433,0.2029841,857.66,856.53,0.72974077]
[1766174279734,0.2029841,857.66,856.54,0.72974077]
[1766174280033,0.2029841,857.66,856.55,0.72974077]
[1766174280234,0.2029841,857.66,856.56,0.72974077]
[1766174280434,0.2029841,857.66,856.57,0.72974077]
[1766174280637,0.2029841,857.66,855.7,0.01265006]
[1766174280638,0.2029841,857.66,856.26,0.85901794]
[1766174280836,0.2029841,857.66,856.27,0.72999022]
[1766174281134,0.2029841,857.66,856.28,0.72999022]
[1766174281335,0.2029841,857.66,856.29,0.72999022]
[1766174281635,0.2029841,857.66,856.3,0.72999022]
[1766174281934,0.2029841,857.66,856.31,0.72999022]
[1766174282133,0.2029841,857.66,856.32,0.72999022]
[1766174282330,0.2029841,857.66,856.33,0.72999022]
[1766174282635,0.2029841,857.66,856.34,0.72999022]
[1766174282832,0.2029841,857.66,856.35,0.72999022]
[1766174283133,0.2029841,857.66,856.36,0.72999022]
[1766174283337,0.2029841,857.66,856.37,0.72999022]
[1766174283536,0.2029841,857.66,856.38,0.72999022]
[1766174283835,0.2029841,857.66,856.39,0.72999022]
[1766174284035,0.2029841,857.66,856.4,0.72999022]
[1766174284237,0.2029841,857.66,856.41,0.72999022]
[1766174284436,0.2029841,857.66,856.42,0.72999022]
[1766174284631,0.2029841,857.66,856.43,0.72999022]
[1766174284837,0.2029841,857.66,856.44,0.72999022]
[1766174285036,0.2029841,857.66,856.45,0.72999022]
[1766174285333,0.2029841,857.66,856.46,0.72999022]
[1766174285533,0.2029841,857.66,856.47,0.72999022]
[1766174285732,0.2029841,857.66,856.19,0.85901794]
[1766174285935,0.2029841,857.66,856.2,0.72999865]
[1766174286135,0.2029841,857.66,856.21,0.72999865]
[1766174286334,0.2029841,857.66,856.22,0.72999865]
[1766174286535,0.2029841,857.66,856.23,0.72999865]
[1766174286736,0.2029841,857.66,856.24,0.72999865]
[1766174286937,0.2029841,857.66,856.25,0.72999865]
[1766174287138,0.2029841,857.66,856.26,0.72999865]
[1766174287336,0.2029841,857.66,856.27,0.72999865]
[1766174287539,0.2029841,857.66,856.28,0.72999865]
[1766174287740,0.2029841,857.66,856.29,0.72999865]
[1766174287937,0.2029841,857.66,856.3,0.72999865]
[1766174288138,0.2029841,857.66,856.31,0.72999865]
[1766174288337,0.2029841,857.66,856.32,0.72999865]
[1766174288636,0.2029841,857.66,856.33,0.72999865]
[1766174288839,0.2029841,857.66,856.34,0.72999865]
[1766174289036,0.2029841,857.66,856.35,0.72999865]
[1766174289236,0.2029841,857.66,856.05,1.13346959]
[1766174289237,0.2029841,857.66,856.36,0.72999865]
[1766174289440,0.2029841,857.66,856.37,0.72999865]
[1766174289641,0.2029841,857.66,856.38,0.72999865]
[1766174289939,0.2029841,857.66,856.39,0.72999865]
[1766174290138,0.2029841,857.66,856.4,0.72999865]
[1766174290341,0.2029841,857.66,856.41,0.72999865]
[1766174290641,0.2029841,857.66,856.42,0.72999865]
[1766174290842,0.2029841,857.66,856.43,0.72999865]
[1766174291042,0.2029841,857.66,856.44,0.72999865]
[1766174291242,0.2029841,857.66,856.45,0.72999865]
[1766174291442,0.2029841,857.66,856.46,0.72999865]
[1766174291738,0.2029841,857.66,856.47,0.72999865]
[1766174292042,0.2029841,857.66,856.48,0.72999865]
[1766174292240,0.2029841,857.66,856.49,0.72999865]
[1766174292439,0.2029841,857.66,856.5,0.72999865]
[1766174292639,0.2029841,857.66,856.51,0.72999865]
[1766174292838,0.2029841,857.66,856.52,0.72999865]
[1766174293140,0.2029841,857.66,856.53,0.72999865]
[1766174293340,0.2029841,857.66,856.54,0.72999865]
[1766174293539,0.2029841,857.66,856.26,0.85901794]
[1766174293740,0.2029841,857.66,856.27,0.73065543]
[1766174293939,0.2029841,857.66,856.28,0.73065543]
[1766174294140,0.2029841,857.66,856.29,0.73065543]
[1766174294341,0.2029841,857.66,856.11,1.13346959]
[1766174294342,0.2029841,857.66,856.3,0.73065543]
[1766174294544,0.2029841,857.66,856.31,0.73065543]
[1766174294743,0.2029841,857.66,856.32,0.73065543]
[1766174294944,0.2029841,857.66,856.33,0.73065543]
[1766174295141,0.2029841,857.66,856.34,0.73065543]
[1766174295441,0.2029841,857.66,856.35,0.73065543]
[1766174295640,0.2029841,857.66,856.36,0.73065543]
[1766174295842,0.2029841,857.66,856.37,0.73065543]
[1766174296041,0.2029841,857.66,856.38,0.73065543]
[1766174296245,0.2029841,857.66,856.39,0.73065543]
[1766174296542,0.2029841,857.66,856.4,0.73065543]
[1766174296742,0.2029841,857.66,856.41,0.73065543]
[1766174296942,0.2029841,857.66,856.42,0.73065543]
[1766174297143,0.2029841,857.66,856.43,0.73065543]
[1766174297344,0.2029841,857.66,856.44,0.73065543]
[1766174297546,0.2029841,857.66,856.45,0.73065543]
[1766174297746,1.72973604,857.6,856.46,0.73065543]
[1766174297943,1.72973604,857.6,856.47,0.73065543]
[1766174298142,1.72973604,857.6,856.48,0.73065543]
[1766174298344,1.72973604,857.6,856.2,0.85901794]
[1766174298547,1.72973604,857.6,856.21,0.73122299]
[1766174298746,1.72973604,857.6,856.22,0.73122299]
[1766174298944,1.72973604,857.6,856.23,0.73122299]
[1766174299142,1.72973604,857.6,856.24,0.73122299]
[1766174299345,1.72973604,857.6,856.25,0.73122299]
[1766174299645,1.72973604,857.6,856.26,0.73122299]
[1766174299841,1.72973604,857.6,856.27,0.73122299]
[1766174300142,1.72973604,857.6,856.28,0.73122299]
[1766174300340,1.72973604,857.6,856.29,0.73122299]
[1766174300543,1.72973604,857.6,856.3,0.73122299]
[1766174300742,1.72973604,857.6,856.31,0.73122299]
[1766174301045,1.72973604,857.6,856.32,0.73122299]
[1766174301241,1.72973604,857.59,856.33,0.73122299]
[1766174301446,1.72973604,857.59,856.21,0.85901794]
[1766174301644,1.72973604,857.59,856.22,0.73120052]
[1766174301840,1.72973604,857.59,856.23,0.73120052]
[1766174302045,1.72973604,857.59,856.24,0.73120052]
[1766174302242,1.72973604,857.59,856.25,0.73120052]
[1766174302446,1.72973604,857.59,856.26,0.73120052]
[1766174302644,1.72973604,857.59,856.27,0.73120052]
[1766174302847,1.72973604,857.59,856.28,0.73120052]
[1766174303143,1.72973604,857.59,856.29,0.73120052]
[1766174303346,1.72973604,857.59,856.3,0.73120052]
[1766174303542,1.72973604,857.59,856.31,0.73120052]
[1766174303746,1.72973604,857.59,856.32,0.73120052]
[1766174303946,1.72973604,857.59,856.33,0.73120052]
[1766174304147,1.72973604,857.59,856.34,0.73120052]
[1766174304345,1.72973604,857.59,856.35,0.73120052]
[1766174304544,1.72973604,857.59,856.36,0.73120052]
[1766174304744,1.72973604,857.59,856.37,0.73120052]
[1766174304944,1.72973604,857.59,856.38,0.73120052]
[1766174305144,1.72973604,857.59,856.39,0.73120052]
[1766174305347,1.72973604,857.59,856.4,0.73120052]
[1766174305648,1.72973604,857.59,856.41,0.73120052]
[1766174305844,1.72973604,857.59,856.42,0.73120052]
[1766174306048,1.72973604,857.59,856.43,0.73120052]
[1766174306246,1.72973604,857.59,856.44,0.73120052]
[1766174306549,1.72973604,857.59,856.45,0.73120052]
[1766174306744,1.72973604,857.59,856.21,0.85901794]
[1766174306745,1.72973604,857.59,856.46,0.73120052]
[1766174306946,1.72973604,857.59,856.47,0.73120052]
[1766174307146,1.72973604,857.59,856.21,0.85901794]
[1766174307147,1.72973604,857.59,856.48,0.73120052]
[1766174307348,1.72973604,857.59,856.21,0.85901794]
[1766174307645,1.72973604,857.59,856.22,0.73064234]
[1766174307845,1.72973604,857.59,856.23,0.73064234]
[1766174308149,1.72973604,857.59,856.24,0.73064234]
[1766174308348,1.72973604,857.59,856.25,0.73064234]
[1766174308545,1.72973604,857.59,856.26,0.73064234]
[1766174308747,1.72973604,857.59,856.27,0.73064234]
[1766174308947,1.72973604,857.59,856.21,0.85901794]
[1766174308948,1.72973604,857.59,856.28,0.73064234]
[1766174309146,1.72973604,857.59,856.29,0.73064234]
[1766174309345,1.72973604,857.59,856.3,0.73064234]
[1766174309550,1.72973604,857.59,856.31,0.73064234]
[1766174309849,1.72973604,857.57,856.32,0.73064234]
[1766174310047,1.72973604,857.57,856.33,0.73064234]
[1766174310247,1.72973604,857.57,856.34,0.73064234]
[1766174310552,1.72973604,857.57,856.35,0.73064234]
[1766174310749,1.72973604,857.57,856.36,0.73064234]
[1766174310949,1.72973604,857.57,856.37,0.73064234]
[1766174311152,1.72973604,857.57,856.38,0.73064234]
[1766174311353,1.72973604,857.57,856.39,0.73064234]
[1766174311650,1.72973604,857.57,856.4,0.73064234]
[1766174311853,1.72973604,857.57,856.41,0.73064234]
[1766174312149,1.72973604,857.57,856.18,0.85901794]
[1766174312150,1.72973604,857.57,856.42,0.73064234]
[1766174312452,1.72973604,857.57,856.43,0.73064234]
[1766174312653,1.72973604,857.57,856.44,0.73064234]
[1766174312852,1.72973604,857.57,856.45,0.73064234]
[1766174313051,1.72973604,857.57,856.46,0.73064234]
[1766174313251,1.72973604,857.57,856.18,0.85901794]
[1766174313449,1.72973604,857.57,856.19,0.73067943]
[1766174313656,1.72973604,857.57,856.2,0.73067943]
[1766174313851,1.72973604,857.57,856.21,0.73067943]
[1766174314050,1.72973604,857.57,856.22,0.73067943]
[1766174314255,1.72973604,857.57,856.23,0.73067943]
[1766174314554,1.72973604,857.57,856.24,0.73067943]
[1766174314754,1.72973604,857.57,856.25,0.73067943]
[1766174315055,1.72973604,857.57,856.26,0.73067943]
[1766174315257,1.72973604,857.57,856.27,0.73067943]
[1766174315458,1.72973604,857.57,856.28,0.73067943]
[1766174315652,1.72973604,857.57,856.18,0.85901794]
[1766174315653,1.72973604,857.57,856.29,0.73067943]
[1766174315852,1.72973604,857.57,856.3,0.73067943]
[1766174316056,1.72973604,857.57,856.31,0.73067943]
[1766174316256,1.72973604,857.57,856.32,0.73067943]
[1766174316453,1.72973604,857.57,856.33,0.73067943]
[1766174316657,1.72973604,857.57,856.34,0.73067943]
[1766174316858,1.72973604,857.57,856.35,0.73067943]
[1766174317055,1.72973604,857.57,856.36,0.73067943]
[1766174317256,1.72973604,857.57,856.37,0.73067943]
[1766174317459,1.72973604,857.57,856.38,0.73067943]
[1766174317657,1.72973604,857.57,856.39,0.73067943]
[1766174317856,1.72973604,857.57,856.4,0.73067943]
[1766174318060,1.72973604,857.57,856.41,0.73067943]
[1766174318258,1.72973604,857.57,856.42,0.73067943]
[1766174318461,1.72973604,857.57,856.43,0.73067943]
[1766174318663,1.72973604,857.57,856.44,0.73067943]
[1766174318862,1.72973604,857.57,856.45,0.73067943]
[1766174319163,1.72973604,857.57,856.18,0.85901794]
[1766174319363,1.72973604,857.55,856.19,0.73074055]
[1766174319564,1.72973604,857.55,856.2,0.73074055]
[1766174319864,1.72973604,857.56,856.21,0.73074055]
[1766174320164,1.72973604,857.56,856.22,0.73074055]
[1766174320364,1.72973604,857.56,856.23,0.73074055]
[1766174320560,1.72973604,857.5,856.24,0.73074055]
[1766174320758,1.72973604,857.41,856.25,0.73074055]
[1766174320964,1.72973604,857.39,856.26,0.73074055]
[1766174321263,1.72973604,857.39,855.98,0.85901794]
[1766174321464,1.72973604,857.39,855.99,0.73101267]
[1766174321764,1.72973604,857.39,856.0,0.73101267]
[1766174322064,1.72973604,857.39,856.01,0.73101267]
[1766174322261,1.72973604,857.4,856.02,0.73101267]
[1766174322459,1.72973604,857.4,856.03,0.73101267]
[1766174322760,1.72973604,857.4,856.04,0.73101267]
[1766174322960,1.72973604,857.4,856.05,0.73101267]
[1766174323164,1.72973604,857.4,856.06,0.73101267]
[1766174323461,0.2029841,857.66,856.07,0.73101267]
[1766174323462,1.72973604,857.41,856.07,0.73101267]
[1766174323661,1.72973604,857.41,856.08,0.73101267]
[1766174323864,1.72973604,857.41,856.09,0.73101267]
[1766174324166,1.72973604,857.41,856.1,0.73101267]
[1766174324364,1.72973604,857.41,856.11,0.73101267]
[1766174324564,1.72973604,857.41,856.12,0.73101267]
[1766174324761,1.72973604,857.41,856.13,0.73101267]
[1766174324965,1.72973604,857.41,856.14,0.73101267]
[1766174325265,0.2029841,857.66,856.15,0.73101267]
[1766174325266,1.72973604,857.42,856.15,0.73101267]
[1766174325565,1.72973604,857.42,856.16,0.73101267]
[1766174325865,1.72973604,857.41,856.17,0.73101267]
[1766174326066,1.72973604,857.38,856.18,0.73101267]
[1766174326365,1.72973604,857.31,855.86,8.9123171]
[1766174326559,1.72973604,857.31,855.87,0.7307364]
[1766174326762,1.72973604,857.31,855.88,0.7307364]
[1766174326965,1.72973604,857.31,855.89,0.7307364]
[1766174327161,1.72973604,857.31,855.9,0.7307364]
[1766174327367,1.72973604,857.32,855.91,0.7307364]
[1766174327571,1.72973604,857.32,855.92,0.7307364]
[1766174327868,1.72973604,857.32,855.93,0.7307364]
[1766174328068,1.72973604,857.32,855.94,0.7307364]
[1766174328267,1.72973604,857.32,855.95,0.7307364]
[1766174328468,1.72973604,857.33,855.96,0.7307364]
[1766174328669,1.72973604,857.33,855.97,0.7307364]
[1766174328869,1.72973604,857.33,855.98,0.7307364]
[1766174329068,1.72973604,857.33,855.99,0.7307364]
[1766174329266,1.72973604,857.34,856.0,0.7307364]
[1766174329570,1.72973604,857.34,856.01,0.7307364]
[1766174329765,1.72973604,857.35,856.02,0.7307364]
[1766174329970,1.72973604,857.35,856.03,0.7307364]
[1766174330172,1.72973604,857.36,856.04,0.7307364]
[1766174330369,1.72973604,857.36,856.05,0.7307364]
[1766174330574,1.72973604,857.36,856.06,0.7307364]
[1766174330873,1.72973604,857.36,856.07,0.7307364]
[1766174331168,1.72973604,857.36,856.08,0.7307364]
[1766174331369,1.72973604,857.37,855.86,8.9123171]
[1766174331569,1.72973604,857.37,855.87,0.72988856]
[1766174331771,1.72973604,857.37,855.88,0.72988856]
[1766174331970,1.72973604,857.37,855.89,0.72988856]
[1766174332174,1.72973604,857.37,855.9,0.72988856]
[1766174332371,1.72973604,857.38,855.91,0.72988856]
[1766174332571,1.72973604,857.38,855.92,0.72988856]
[1766174332874,1.72973604,857.31,855.93,0.72988856]
[1766174333075,1.72973604,857.31,855.94,0.72988856]
[1766174333375,0.2029841,857.66,855.67,0.20308657]
[1766174333376,1.72973604,857.25,855.67,0.20308657]
[1766174333571,1.72973604,857.25,855.68,0.72864864]
[1766174333870,1.72973604,857.3,855.69,1.58766658]
[1766174334070,0.2029841,857.66,855.71,0.85901794]
[1766174334071,1.72973604,857.32,855.71,0.85901794]
[1766174334270,1.72973604,857.32,855.72,0.72864864]
[1766174334477,1.72973604,857.32,855.73,0.72864864]
[1766174334671,1.72973604,857.32,855.71,0.85901794]
[1766174334672,1.72973604,857.4,855.79,0.85901794]
[1766174334871,1.72973604,857.4,855.8,0.72864864]
[1766174335077,1.72973604,857.4,855.81,0.72864864]
[1766174335273,1.72973604,857.48,855.88,0.85901794]
[1766174335473,1.72973604,857.48,855.89,0.72864864]
[1766174335676,1.72973604,857.48,855.9,0.72864864]
[1766174335975,1.72973604,857.48,855.91,0.72864864]
[1766174336173,1.72973604,857.48,855.92,0.72864864]
[1766174336373,1.72973604,857.47,855.93,0.72864864]
[1766174336573,1.72973604,857.47,855.94,0.72864864]
[1766174336774,1.72973604,857.47,855.95,0.72864864]
[1766174336981,1.72973604,857.47,855.96,0.72864864]
[1766174337181,1.72973604,857.46,855.97,0.72864864]
[1766174337482,1.72973604,857.46,855.98,0.72864864]
[1766174337781,1.72973604,857.46,855.99,0.72864864]
[1766174338076,1.72973604,857.46,856.0,0.72864864]
[1766174338277,1.72973604,857.45,856.01,0.72864864]
[1766174338478,1.72973604,857.45,856.02,0.72864864]
[1766174338675,1.72973604,857.45,856.03,0.72864864]
[1766174338877,1.72973604,857.45,856.04,0.72864864]
[1766174339082,1.72973604,857.45,856.05,0.72864864]
[1766174339281,1.72973604,857.45,855.91,0.85901794]
[1766174339282,1.72973604,857.44,856.06,0.72864864]
[1766174339582,1.72973604,857.44,856.07,0.72864864]
[1766174339781,1.72973604,857.44,856.08,0.72864864]
[1766174339981,1.72973604,857.44,856.09,0.72864864]
[1766174340182,1.72973604,857.44,856.1,0.72864864]
[1766174340382,1.72973604,857.44,856.11,0.72864864]
[1766174340679,1.72973604,857.44,856.12,0.72864864]
[1766174340876,1.72973604,857.44,856.13,0.72864864]
[1766174341181,1.72973604,857.44,856.14,0.72864864]
[1766174341378,1.72973604,857.44,856.15,0.72864864]
[1766174341682,1.72973604,857.44,856.16,0.72864864]
[1766174341881,1.72973604,857.44,856.17,0.72864864]
[1766174342180,1.72973604,857.44,856.18,0.72864864]
[1766174342381,1.72973604,857.44,856.19,0.72864864]
[1766174342581,1.72973604,857.44,856.2,0.72864864]
[1766174342779,1.72973604,857.44,855.93,0.85901794]
[1766174342983,1.72973604,857.44,855.94,0.72872331]
[1766174343278,1.72973604,857.44,855.95,0.72872331]
[1766174343483,1.72973604,857.44,855.96,0.72872331]
[1766174343782,1.72973604,857.44,855.97,0.72872331]
[1766174343980,1.72973604,857.44,855.98,0.72872331]
[1766174344180,1.72973604,857.44,855.99,0.72872331]
[1766174344380,1.72973604,857.44,856.0,0.72872331]
[1766174344685,1.72973604,857.44,856.01,0.72872331]
[1766174344884,1.72973604,857.44,855.93,0.85901794]
[1766174344885,1.72973604,857.44,856.02,0.72872331]
[1766174345085,1.72973604,857.44,856.03,0.72872331]
[1766174345285,1.72973604,857.44,856.04,0.72872331]
[1766174345486,1.72973604,857.44,856.05,0.72872331]
[1766174345686,1.72973604,857.44,856.06,0.72872331]
[1766174345882,1.72973604,857.44,856.07,0.72872331]
[1766174346085,1.72973604,857.44,856.08,0.72872331]
[1766174346283,1.72973604,857.44,856.09,0.72872331]
[1766174346482,1.72973604,857.44,856.1,0.72872331]
[1766174346683,1.72973604,857.44,856.11,0.72872331]
[1766174346981,1.72973604,857.44,856.12,0.72872331]
[1766174347286,1.72973604,857.43,856.13,0.72872331]
[1766174347486,1.72973604,857.43,856.14,0.72872331]
[1766174347785,1.72973604,857.43,856.15,0.72872331]
[1766174347983,1.72973604,857.43,856.16,0.72872331]
[1766174348182,1.72973604,857.43,856.17,0.72872331]
[1766174348383,1.72973604,857.43,856.18,0.72872331]
[1766174348582,1.72973604,857.43,856.19,0.72872331]
[1766174348787,1.72973604,857.43,856.2,0.72872331]
[1766174348982,1.72973604,857.43,856.21,0.72872331]
[1766174349187,1.72973604,857.43,855.94,0.85901794]
[1766174349382,1.72973604,857.43,855.95,0.72890567]
[1766174349686,1.72973604,857.43,855.96,0.72890567]
[1766174349887,1.72973604,857.43,855.97,0.72890567]
[1766174350082,1.72973604,857.43,855.98,0.72890567]
[1766174350283,1.72973604,857.43,855.99,0.72890567]
[1766174350488,1.72973604,857.43,856.0,0.72890567]
[1766174350687,1.72973604,857.43,856.01,0.72890567]
[1766174350988,1.72973604,857.43,856.02,0.72890567]
[1766174351288,1.72973604,857.53,856.05,0.85901794]
[1766174351484,1.72973604,857.53,856.06,0.72890567]
[1766174351684,1.72973604,857.53,856.07,0.72890567]
[1766174351888,1.72973604,857.53,856.08,0.72890567]
[1766174352085,1.72973604,857.53,856.09,0.72890567]
[1766174352388,1.72973604,857.53,856.1,0.72890567]
[1766174352585,1.72973604,857.53,856.11,0.72890567]
[1766174352789,1.72973604,857.53,856.12,0.72890567]
[1766174353084,1.72973604,857.53,856.13,0.72890567]
[1766174353289,1.72973604,857.52,856.14,0.72890567]
[1766174353489,1.72973604,857.52,856.15,0.72890567]
[1766174353785,1.72973604,857.52,856.16,0.72890567]
[1766174353989,1.72973604,857.52,856.17,0.72890567]
[1766174354285,1.72973604,857.52,856.18,0.72890567]
[1766174354487,1.72973604,857.52,856.19,0.72890567]
[1766174354685,1.72973604,857.52,856.2,0.72890567]
[1766174354888,1.72973604,857.52,856.21,0.72890567]
[1766174355086,1.72973604,857.52,856.22,0.72890567]
[1766174355290,1.72973604,857.51,856.23,0.72890567]
[1766174355490,1.72973604,857.51,856.24,0.72890567]
[1766174355790,1.72973604,857.51,856.25,0.72890567]
[1766174355985,1.72973604,857.51,856.26,0.72890567]
[1766174356186,1.72973604,857.51,856.27,0.72890567]
[1766174356386,1.72973604,857.51,856.28,0.72890567]
[1766174356690,1.72973604,857.51,856.29,0.72890567]
[1766174356888,1.72973604,857.51,856.3,0.72890567]
[1766174357093,1.72973604,857.51,856.31,0.72890567]
[1766174357388,1.72973604,857.51,856.07,0.85901794]
[1766174357389,1.72973604,857.51,856.32,0.72890567]
[1766174357592,1.72973604,857.51,856.33,0.72890567]
[1766174357789,1.72973604,857.51,856.34,0.72890567]
[1766174357992,1.72973604,857.51,856.35,0.72890567]
[1766174358193,1.72973604,857.5,856.08,0.85901794]
[1766174358493,1.72973604,857.5,856.09,0.72897981]
[1766174358691,1.72973604,857.5,856.1,0.72897981]
[1766174358894,1.72973604,857.5,856.11,0.72897981]
[1766174359189,1.72973604,857.5,856.12,0.72897981]
[1766174359394,1.72973604,857.5,856.13,0.72897981]
[1766174359593,1.72973604,857.5,856.14,0.72897981]
[1766174359791,1.72973604,857.44,856.15,0.72897981]
[1766174359991,1.72973604,857.44,856.16,0.72897981]
[1766174360194,1.72973604,857.44,856.17,0.72897981]
[1766174360395,1.72973604,857.44,856.18,0.72897981]
[1766174360690,1.72973604,857.44,856.19,0.72897981]
[1766174360892,1.72973604,857.44,856.2,0.72897981]
[1766174361096,1.72973604,857.44,856.21,0.72897981]
[1766174361292,1.72973604,857.44,856.22,0.72897981]
[1766174361491,1.72973604,857.44,856.23,0.72897981]
[1766174361694,1.72973604,857.44,856.24,0.72897981]
[1766174361894,1.72973604,857.44,856.25,0.72897981]
[1766174362092,1.72973604,857.44,856.26,0.72897981]
[1766174362294,1.72973604,857.43,856.27,0.72897981]
[1766174362597,1.72973604,857.43,856.28,0.72897981]
[1766174362794,1.72973604,857.43,856.29,0.72897981]
[1766174362994,1.72973604,857.43,856.3,0.72897981]
[1766174363194,1.72973604,857.43,856.02,0.85901794]
[1766174363396,1.72973604,857.43,856.03,1.58829927]
[1766174363594,1.72973604,857.43,856.04,0.72928133]
[1766174363897,1.72973604,857.43,856.05,0.72928133]
[1766174364098,1.72973604,857.43,856.06,0.72928133]
[1766174364297,1.72973604,857.43,856.07,0.72928133]
[1766174364598,1.72973604,857.43,856.08,0.72928133]
[1766174364898,1.72973604,857.43,856.09,0.72928133]
[1766174365198,1.72973604,857.43,856.1,0.72928133]
[1766174365394,1.72973604,857.43,856.11,0.72928133]
[1766174365593,1.72973604,857.43,856.12,0.72928133]
[1766174365793,1.72973604,857.43,856.03,0.85901794]
[1766174365794,1.72973604,857.43,856.13,0.72928133]
[1766174365995,1.72973604,857.43,856.14,0.72928133]
[1766174366194,1.72973604,857.43,856.15,0.72928133]
[1766174366393,1.72973604,857.43,856.16,0.72928133]
[1766174366595,1.72973604,857.43,856.17,0.72928133]
[1766174366794,1.72973604,857.43,856.18,0.72928133]
[1766174366993,1.72973604,857.43,856.19,0.72928133]
[1766174367293,1.72973604,857.43,856.03,0.85901794]
[1766174367294,1.72973604,857.42,856.2,0.72928133]
[1766174367498,1.72973604,857.42,856.21,0.72928133]
[1766174367797,1.72973604,857.42,856.22,0.72928133]
[1766174367999,1.72973604,857.42,856.23,0.72928133]
[1766174368198,1.72973604,857.42,856.24,0.72928133]
[1766174368398,1.72973604,857.42,856.25,0.72928133]
[1766174368599,1.72973604,857.42,856.26,0.72928133]
[1766174368798,1.72973604,857.42,856.27,0.72928133]
[1766174369098,1.72973604,857.42,856.28,0.72928133]
[1766174369298,1.72973604,857.42,856.29,0.72928133]
[1766174369496,1.72973604,857.42,856.3,0.72928133]
[1766174369694,1.72973604,857.42,856.31,0.72928133]
[1766174369896,1.72973604,857.47,856.32,0.72928133]
[1766174370098,1.72973604,857.47,856.33,0.72928133]
[1766174370296,1.72973604,857.47,856.34,0.72928133]
[1766174370502,1.72973604,857.47,856.35,0.72928133]
[1766174370695,1.72973604,857.47,856.36,0.72928133]
[1766174370899,1.72973604,857.47,856.37,0.72928133]
[1766174371100,1.72973604,857.46,856.1,0.85901794]
[1766174371297,1.72973604,857.46,856.11,0.72999662]
[1766174371595,1.72973604,857.46,856.12,0.72999662]
[1766174371896,1.72973604,857.46,856.13,0.72999662]
[1766174372099,1.72973604,857.46,856.14,0.72999662]
[1766174372298,1.72973604,857.46,856.15,0.72999662]
[1766174372595,1.72973604,857.46,856.16,0.72999662]
[1766174372796,1.72973604,857.46,856.17,0.72999662]
[1766174372995,1.72973604,857.46,856.18,0.72999662]
[1766174373200,1.72973604,857.46,856.19,0.72999662]
[1766174373394,1.72973604,857.46,856.2,0.72999662]
[1766174373599,1.72973604,857.46,856.21,0.72999662]
[1766174373797,1.72973604,857.46,856.22,0.72999662]
[1766174374001,1.72973604,857.46,856.23,0.72999662]
[1766174374203,1.72973604,857.45,856.24,0.72999662]
[1766174374400,1.72973604,857.45,856.25,0.72999662]
[1766174374603,1.72973604,857.45,856.26,0.72999662]
[1766174374800,1.72973604,857.45,856.27,0.72999662]
[1766174375000,1.72973604,857.45,856.28,0.72999662]
[1766174375201,1.72973604,857.45,856.29,0.72999662]
[1766174375403,1.72973604,857.45,856.3,0.72999662]
[1766174375603,1.72973604,857.45,856.31,0.72999662]
[1766174375804,1.72973604,857.45,856.32,0.72999662]
[1766174375999,1.72973604,857.45,856.33,0.72999662]